[Event "*** Titled Tuesday Blitz"]
[Site "Chess.com"]
[Date "2021.04.27"]
[Round "4"]
[White "Leo_C"]
[Black "barbara25"]
[Result "1/2-1/2"]
[WhiteElo "2459"]
[BlackElo "2294"]
[TimeControl "180+1"]
[EndTime "10:39:44 PDT"]
[Termination "Game drawn by repetition"]

1. d4 {[%clk 0:02:56.9]} 1... Nf6 {[%clk 0:02:59.2]} 2. c4 {[%clk 0:02:53.6]}
2... e6 {[%clk 0:02:59.8]} 3. Nc3 {[%clk 0:02:53.2]} 3... Bb4 {[%clk 0:03:00.3]}
4. e3 {[%clk 0:02:53.6]} 4... Bxc3+ {[%clk 0:03:00.2]} 5. bxc3 {[%clk
0:02:53.3]} 5... c5 {[%clk 0:03:00.9]} 6. Bd3 {[%clk 0:02:52.9]} 6... O-O {[%clk
0:03:00.8]} 7. Ne2 {[%clk 0:02:52.7]} 7... Nc6 {[%clk 0:03:01]} 8. O-O {[%clk
0:02:49.3]} 8... b6 {[%clk 0:03:01.3]} 9. Ng3 {[%clk 0:02:47.5]} 9... Ba6 {[%clk
0:03:00.5]} 10. e4 {[%clk 0:02:37.8]} 10... h6 {[%clk 0:03:00]} 11. Be3 {[%clk
0:02:31.4]} 11... d6 {[%clk 0:02:58.2]} 12. f4 {[%clk 0:02:29.3]} 12... Na5
{[%clk 0:02:57.6]} 13. Qe2 {[%clk 0:02:25.2]} 13... Rc8 {[%clk 0:02:56.9]} 14.
d5 {[%clk 0:02:25.1]} 14... Re8 {[%clk 0:02:44.3]} 15. e5 {[%clk 0:02:07.9]}
15... Nd7 {[%clk 0:02:40.2]} 16. dxe6 {[%clk 0:02:06.5]} 16... Rxe6 {[%clk
0:02:38.4]} 17. Bf5 {[%clk 0:01:54.3]} 17... Re8 {[%clk 0:02:38.1]} 18. Qg4
{[%clk 0:01:45.3]} 18... Re7 {[%clk 0:02:29.7]} 19. exd6 {[%clk 0:01:39.8]}
19... Rxe3 {[%clk 0:02:27.6]} 20. Bxd7 {[%clk 0:01:38.9]} 20... Rxg3 {[%clk
0:01:36.4]} 21. hxg3 {[%clk 0:01:36.2]} 21... Rb8 {[%clk 0:01:35.7]} 22. Rfe1
{[%clk 0:01:25.4]} 22... Qf6 {[%clk 0:01:35.4]} 23. Rad1 {[%clk 0:01:14.5]}
23... Nxc4 {[%clk 0:01:32.5]} 24. Qf5 {[%clk 0:00:58.2]} 24... Qxc3 {[%clk
0:01:18.2]} 25. Be8 {[%clk 0:00:52.7]} 25... Nxd6 {[%clk 0:01:08.7]} 26. Bxf7+
{[%clk 0:00:17.9]} 26... Nxf7 {[%clk 0:01:06.3]} 27. Re7 {[%clk 0:00:17.8]}
27... Bc4 {[%clk 0:01:04]} 28. Rdd7 {[%clk 0:00:16.2]} 28... Rf8 {[%clk
0:01:02.2]} 29. Rxa7 {[%clk 0:00:15.8]} 29... Qxg3 {[%clk 0:00:59.9]} 30. Qe4
{[%clk 0:00:11.8]} 30... b5 {[%clk 0:00:50.1]} 31. a4 {[%clk 0:00:11.1]} 31...
Qb3 {[%clk 0:00:19.7]} 32. axb5 {[%clk 0:00:08.7]} 32... Bd5 {[%clk 0:00:18.8]}
33. Qe2 {[%clk 0:00:07.1]} 33... Qb1+ {[%clk 0:00:16.4]} 34. Kh2 {[%clk
0:00:06.6]} 34... c4 {[%clk 0:00:15.7]} 35. Rad7 {[%clk 0:00:06.2]} 35... Qf5
{[%clk 0:00:11]} 36. b6 {[%clk 0:00:03.5]} 36... h5 {[%clk 0:00:10.3]} 37. b7
{[%clk 0:00:03.7]} 37... h4 {[%clk 0:00:08.3]} 38. Re8 {[%clk 0:00:04]} 38...
Qxf4+ {[%clk 0:00:07.2]} 39. Kh1 {[%clk 0:00:04.3]} 39... Qc1+ {[%clk
0:00:07.1]} 40. Kh2 {[%clk 0:00:04.2]} 40... Qf4+ {[%clk 0:00:07.2]} 41. Kh1
{[%clk 0:00:04.7]} 41... Qc1+ {[%clk 0:00:07.4]} 42. Kh2 {[%clk 0:00:05.1]}
42... Qf4+ {[%clk 0:00:05.6]} 1/2-1/2

[Event "*** Titled Tuesday Blitz"]
[Site "Chess.com"]
[Date "2021.04.27"]
[Round "4"]
[White "ElCoachRene"]
[Black "mac0504"]
[Result "0-1"]
[WhiteElo "2204"]
[BlackElo "2595"]
[TimeControl "180+1"]
[EndTime "10:39:45 PDT"]
[Termination "mac0504 won by resignation"]

1. d4 {[%clk 0:02:49.2]} 1... Nf6 {[%clk 0:02:58.7]} 2. Bf4 {[%clk 0:02:49.7]}
2... d6 {[%clk 0:02:52]} 3. e3 {[%clk 0:02:49.8]} 3... g6 {[%clk 0:02:51.8]} 4.
Nf3 {[%clk 0:02:50.4]} 4... Bg7 {[%clk 0:02:50.7]} 5. h3 {[%clk 0:02:50.8]} 5...
O-O {[%clk 0:02:50.2]} 6. Nbd2 {[%clk 0:02:50.7]} 6... c5 {[%clk 0:02:50.8]} 7.
c3 {[%clk 0:02:50.5]} 7... Nc6 {[%clk 0:02:51.5]} 8. Be2 {[%clk 0:02:50.4]} 8...
cxd4 {[%clk 0:02:51.4]} 9. cxd4 {[%clk 0:02:51.2]} 9... e5 {[%clk 0:02:51.1]}
10. dxe5 {[%clk 0:02:34.4]} 10... dxe5 {[%clk 0:02:46.2]} 11. Bh2 {[%clk
0:02:34.8]} 11... e4 {[%clk 0:02:29.5]} 12. Ne5 {[%clk 0:02:28]} 12... Qa5
{[%clk 0:02:02.7]} 13. Nc4 {[%clk 0:02:19.7]} 13... Qg5 {[%clk 0:01:57.4]} 14.
O-O {[%clk 0:02:15.6]} 14... Bxh3 {[%clk 0:01:52.8]} 15. Bg3 {[%clk 0:02:07]}
15... Be6 {[%clk 0:01:44.9]} 16. Bf4 {[%clk 0:01:56]} 16... Qd5 {[%clk
0:01:32.9]} 17. Qe1 {[%clk 0:01:03.6]} 17... Rfd8 {[%clk 0:01:20.1]} 18. Rd1
{[%clk 0:00:59.4]} 18... Nb4 {[%clk 0:01:02.9]} 19. Nb3 {[%clk 0:00:42]} 19...
Nd3 {[%clk 0:01:02.4]} 20. Bxd3 {[%clk 0:00:32.1]} 20... exd3 {[%clk 0:01:03.3]}
21. Ne5 {[%clk 0:00:25.1]} 21... Bf5 {[%clk 0:00:28]} 22. Qc3 {[%clk 0:00:17.5]}
22... Ne4 {[%clk 0:00:26.3]} 23. Qxd3 {[%clk 0:00:14.4]} 23... Qxd3 {[%clk
0:00:17.4]} 24. Rxd3 {[%clk 0:00:14.4]} 24... Rxd3 {[%clk 0:00:11.3]} 25. Nxd3
{[%clk 0:00:13.9]} 25... Rd8 {[%clk 0:00:09.6]} 26. Ndc5 {[%clk 0:00:11.2]}
26... Nxc5 {[%clk 0:00:05.7]} 27. Nxc5 {[%clk 0:00:12.1]} 27... b6 {[%clk
0:00:05.8]} 28. Nb3 {[%clk 0:00:10.8]} 28... Bxb2 {[%clk 0:00:06.2]} 29. Nd4
{[%clk 0:00:08.6]} 29... Bxd4 {[%clk 0:00:05]} 30. exd4 {[%clk 0:00:09.5]} 30...
Rxd4 {[%clk 0:00:04.7]} 31. Bh6 {[%clk 0:00:08.9]} 31... f6 {[%clk 0:00:04.3]}
32. Rd1 {[%clk 0:00:08.8]} 32... Rxd1+ {[%clk 0:00:04.1]} 33. Kh2 {[%clk
0:00:09.1]} 33... Kf7 {[%clk 0:00:03.9]} 34. Be3 {[%clk 0:00:07.7]} 34... Be4
{[%clk 0:00:04.2]} 35. a4 {[%clk 0:00:08.4]} 35... Bc6 {[%clk 0:00:04.3]} 36. f3
{[%clk 0:00:09]} 36... Bxa4 {[%clk 0:00:04.5]} 37. Bf2 {[%clk 0:00:09.3]} 37...
Bc6 {[%clk 0:00:05.4]} 38. Bg3 {[%clk 0:00:09.8]} 38... Rd2 {[%clk 0:00:05.7]}
39. Kh1 {[%clk 0:00:08.3]} 39... Ke6 {[%clk 0:00:05.1]} 40. Kg1 {[%clk
0:00:08.3]} 40... h5 {[%clk 0:00:05.1]} 41. Kf1 {[%clk 0:00:08.9]} 41... g5
{[%clk 0:00:05.6]} 42. Ke1 {[%clk 0:00:09.5]} 42... Ra2 {[%clk 0:00:06.1]} 43.
Bf2 {[%clk 0:00:09.1]} 43... h4 {[%clk 0:00:06.5]} 44. Bd4 {[%clk 0:00:09.3]}
44... h3 {[%clk 0:00:05.9]} 45. gxh3 {[%clk 0:00:09.1]} 45... Bxf3 {[%clk
0:00:06.6]} 46. h4 {[%clk 0:00:08]} 46... gxh4 {[%clk 0:00:06.6]} 0-1

[Event "*** Titled Tuesday Blitz"]
[Site "Chess.com"]
[Date "2021.04.27"]
[Round "4"]
[White "MVM2008"]
[Black "Aslanov_Umid"]
[Result "0-1"]
[WhiteElo "2262"]
[BlackElo "2450"]
[TimeControl "180+1"]
[EndTime "10:39:45 PDT"]
[Termination "Aslanov_Umid won on time"]

1. e4 {[%clk 0:03:00.9]} 1... c5 {[%clk 0:03:00.2]} 2. Nf3 {[%clk 0:02:59.2]}
2... d6 {[%clk 0:03:00.3]} 3. d4 {[%clk 0:03:00.1]} 3... cxd4 {[%clk 0:03:01.2]}
4. Nxd4 {[%clk 0:03:00]} 4... Nf6 {[%clk 0:03:01.8]} 5. Nc3 {[%clk 0:03:00.6]}
5... a6 {[%clk 0:03:01.2]} 6. Bc4 {[%clk 0:02:57.8]} 6... e6 {[%clk 0:03:00.7]}
7. O-O {[%clk 0:02:55.9]} 7... b5 {[%clk 0:02:59.6]} 8. Bb3 {[%clk 0:02:54.9]}
8... Be7 {[%clk 0:02:59.3]} 9. a3 {[%clk 0:02:53.7]} 9... O-O {[%clk 0:02:59.4]}
10. f4 {[%clk 0:02:48]} 10... Bb7 {[%clk 0:02:59.3]} 11. e5 {[%clk 0:02:47]}
11... dxe5 {[%clk 0:02:56.7]} 12. fxe5 {[%clk 0:02:47.9]} 12... Nfd7 {[%clk
0:02:49.8]} 13. Qh5 {[%clk 0:02:28]} 13... Bc5 {[%clk 0:02:31.5]} 14. Be3 {[%clk
0:02:12.2]} 14... Nc6 {[%clk 0:02:29.9]} 15. Rad1 {[%clk 0:02:01.5]} 15... Qb6
{[%clk 0:01:48.7]} 16. Nce2 {[%clk 0:01:43]} 16... Ndxe5 {[%clk 0:01:38.6]} 17.
Kh1 {[%clk 0:01:37.1]} 17... Nxd4 {[%clk 0:01:28.7]} 18. Nxd4 {[%clk 0:01:27.9]}
18... Bxd4 {[%clk 0:01:18.6]} 19. Rxd4 {[%clk 0:01:05.8]} 19... Qc6 {[%clk
0:01:17.3]} 20. Bd5 {[%clk 0:01:02.5]} 20... exd5 {[%clk 0:01:12.4]} 21. Qxe5
{[%clk 0:01:00.8]} 21... Rae8 {[%clk 0:01:12.8]} 22. Qg3 {[%clk 0:00:55]} 22...
Qxc2 {[%clk 0:01:07.8]} 23. Rg4 {[%clk 0:00:49.6]} 23... g6 {[%clk 0:00:43.4]}
24. Bh6 {[%clk 0:00:43.9]} 24... Qe2 {[%clk 0:00:41.2]} 25. Rg1 {[%clk
0:00:38.2]} 25... Qxb2 {[%clk 0:00:25.2]} 26. Qd6 {[%clk 0:00:27.6]} 26... Rd8
{[%clk 0:00:15.1]} 27. Qe7 {[%clk 0:00:21.1]} 27... Bc8 {[%clk 0:00:12.3]} 28.
Rh4 {[%clk 0:00:17]} 28... Rfe8 {[%clk 0:00:10.2]} 29. Qg5 {[%clk 0:00:13.8]}
29... Qe5 {[%clk 0:00:09.9]} 30. Qxe5 {[%clk 0:00:07.4]} 30... Rxe5 {[%clk
0:00:10.8]} 31. Bf4 {[%clk 0:00:07.2]} 31... Re4 {[%clk 0:00:10.4]} 32. Bg5
{[%clk 0:00:04]} 32... Rxh4 {[%clk 0:00:08.9]} 33. Bxd8 {[%clk 0:00:03.6]} 33...
Re4 {[%clk 0:00:08.2]} 34. Bf6 {[%clk 0:00:02.6]} 34... Be6 {[%clk 0:00:07.8]}
35. g4 {[%clk 0:00:01.3]} 35... h6 {[%clk 0:00:07.5]} 36. h3 {[%clk 0:00:01.7]}
36... g5 {[%clk 0:00:07.8]} 37. Kh2 {[%clk 0:00:02.6]} 37... Kh7 {[%clk
0:00:07.8]} 38. Rc1 {[%clk 0:00:01.8]} 38... Kg6 {[%clk 0:00:08.7]} 39. Bc3
{[%clk 0:00:01.1]} 39... Re2+ {[%clk 0:00:08.9]} 0-1

[Event "*** Titled Tuesday Blitz"]
[Site "Chess.com"]
[Date "2021.04.27"]
[Round "4"]
[White "FMOlexandrProhorov"]
[Black "mjray79"]
[Result "0-1"]
[WhiteElo "2264"]
[BlackElo "2451"]
[TimeControl "180+1"]
[EndTime "10:39:47 PDT"]
[Termination "mjray79 won on time"]

1. e4 {[%clk 0:03:00.9]} 1... e5 {[%clk 0:02:59.5]} 2. Nf3 {[%clk 0:02:55.9]}
2... Nc6 {[%clk 0:02:59.3]} 3. Nc3 {[%clk 0:02:56.2]} 3... Nf6 {[%clk 0:02:59]}
4. Bb5 {[%clk 0:02:55.4]} 4... Bb4 {[%clk 0:02:57.9]} 5. d3 {[%clk 0:02:54.4]}
5... O-O {[%clk 0:02:57]} 6. O-O {[%clk 0:02:54.5]} 6... Bxc3 {[%clk 0:02:57.2]}
7. bxc3 {[%clk 0:02:54.4]} 7... d6 {[%clk 0:02:57.6]} 8. h3 {[%clk 0:02:49.1]}
8... h6 {[%clk 0:02:54.2]} 9. Qe2 {[%clk 0:02:33.8]} 9... Bd7 {[%clk 0:02:53.5]}
10. Bd2 {[%clk 0:02:14.8]} 10... a6 {[%clk 0:02:51.1]} 11. Ba4 {[%clk
0:02:13.8]} 11... Qe7 {[%clk 0:02:42.3]} 12. Bb3 {[%clk 0:01:57.1]} 12... Rad8
{[%clk 0:02:41.3]} 13. Nh4 {[%clk 0:01:53.8]} 13... Be6 {[%clk 0:02:40.5]} 14.
Nf5 {[%clk 0:01:52.1]} 14... Bxf5 {[%clk 0:02:38]} 15. exf5 {[%clk 0:01:53]}
15... e4 {[%clk 0:02:31.8]} 16. Rae1 {[%clk 0:01:42.4]} 16... Rfe8 {[%clk
0:02:30.4]} 17. dxe4 {[%clk 0:01:09.6]} 17... Nxe4 {[%clk 0:02:26.2]} 18. Qd3
{[%clk 0:01:08.5]} 18... d5 {[%clk 0:01:51.6]} 19. f3 {[%clk 0:00:58.6]} 19...
Qf6 {[%clk 0:01:24.9]} 20. fxe4 {[%clk 0:00:56.1]} 20... dxe4 {[%clk 0:01:25.8]}
21. Qe3 {[%clk 0:00:50.4]} 21... Re5 {[%clk 0:01:17.9]} 22. g4 {[%clk
0:00:43.6]} 22... Rde8 {[%clk 0:01:04.3]} 23. Re2 {[%clk 0:00:37.5]} 23... Ne7
{[%clk 0:01:00.3]} 24. Rg2 {[%clk 0:00:36.3]} 24... Nd5 {[%clk 0:00:56.4]} 25.
Bxd5 {[%clk 0:00:36]} 25... Rxd5 {[%clk 0:00:57.3]} 26. g5 {[%clk 0:00:32.3]}
26... hxg5 {[%clk 0:00:57]} 27. Rxg5 {[%clk 0:00:25.2]} 27... Red8 {[%clk
0:00:38.6]} 28. Rf2 {[%clk 0:00:24.9]} 28... Qd6 {[%clk 0:00:23]} 29. Be1 {[%clk
0:00:16.1]} 29... f6 {[%clk 0:00:15]} 30. Rg6 {[%clk 0:00:14.1]} 30... Qe7
{[%clk 0:00:13.2]} 31. Rfg2 {[%clk 0:00:13.3]} 31... Rxf5 {[%clk 0:00:12.7]} 32.
Rxg7+ {[%clk 0:00:12.8]} 32... Qxg7 {[%clk 0:00:13.6]} 33. Rxg7+ {[%clk
0:00:13.2]} 33... Kxg7 {[%clk 0:00:14.5]} 34. Qg3+ {[%clk 0:00:13]} 34... Rg5
{[%clk 0:00:14.5]} 35. Kf2 {[%clk 0:00:11.3]} 35... Rxg3 {[%clk 0:00:14.3]} 36.
Kxg3 {[%clk 0:00:11.7]} 36... Kg6 {[%clk 0:00:13.9]} 37. Kf4 {[%clk 0:00:11.8]}
37... f5 {[%clk 0:00:14.5]} 38. Bf2 {[%clk 0:00:09.9]} 38... Rd2 {[%clk
0:00:13.7]} 39. Bd4 {[%clk 0:00:10.8]} 39... Rxc2 {[%clk 0:00:13.4]} 40. h4
{[%clk 0:00:10.4]} 40... Rxa2 {[%clk 0:00:13.2]} 41. h5+ {[%clk 0:00:11.3]}
41... Kxh5 {[%clk 0:00:13.5]} 42. Kxf5 {[%clk 0:00:12.2]} 42... Re2 {[%clk
0:00:13.4]} 43. Kf4 {[%clk 0:00:12.2]} 43... a5 {[%clk 0:00:13.6]} 0-1

[Event "*** Titled Tuesday Blitz"]
[Site "Chess.com"]
[Date "2021.04.27"]
[Round "4"]
[White "HrvojeZagreb"]
[Black "canary2016"]
[Result "0-1"]
[WhiteElo "2230"]
[BlackElo "1995"]
[TimeControl "180+1"]
[EndTime "10:39:47 PDT"]
[Termination "canary2016 won by resignation"]

1. d4 {[%clk 0:03:00.9]} 1... d5 {[%clk 0:02:59.4]} 2. Bf4 {[%clk 0:02:51.3]}
2... Nf6 {[%clk 0:02:59.2]} 3. e3 {[%clk 0:02:50.7]} 3... e6 {[%clk 0:02:58]} 4.
Nf3 {[%clk 0:02:51]} 4... Bd6 {[%clk 0:02:56.9]} 5. Bg3 {[%clk 0:02:51.1]} 5...
O-O {[%clk 0:02:56.5]} 6. Bd3 {[%clk 0:02:50.8]} 6... c5 {[%clk 0:02:55.4]} 7.
c3 {[%clk 0:02:51]} 7... Qc7 {[%clk 0:02:55.2]} 8. Ne5 {[%clk 0:02:49.9]} 8...
Nbd7 {[%clk 0:02:54.5]} 9. f4 {[%clk 0:02:49.7]} 9... b6 {[%clk 0:02:52.4]} 10.
Nd2 {[%clk 0:02:47.1]} 10... Bb7 {[%clk 0:02:52.2]} 11. Bh4 {[%clk 0:02:42.4]}
11... Ne4 {[%clk 0:02:50.6]} 12. g4 {[%clk 0:02:39.5]} 12... Nxd2 {[%clk
0:02:44.5]} 13. Qxd2 {[%clk 0:02:38.7]} 13... Nf6 {[%clk 0:02:44.1]} 14. Bxf6
{[%clk 0:02:36.6]} 14... gxf6 {[%clk 0:02:44.1]} 15. Nf3 {[%clk 0:02:35.4]}
15... e5 {[%clk 0:02:32.3]} 16. fxe5 {[%clk 0:02:26]} 16... fxe5 {[%clk
0:02:32.1]} 17. Bf5 {[%clk 0:02:17]} 17... Bc8 {[%clk 0:02:22.8]} 18. dxe5
{[%clk 0:02:05.1]} 18... Bxe5 {[%clk 0:02:19.6]} 19. Qxd5 {[%clk 0:02:00.6]}
19... Bxf5 {[%clk 0:02:10.7]} 20. gxf5 {[%clk 0:01:45.6]} 20... Bg7 {[%clk
0:02:04.4]} 21. Rg1 {[%clk 0:01:41.1]} 21... Kh8 {[%clk 0:02:00.5]} 22. Rxg7
{[%clk 0:01:22.7]} 22... Kxg7 {[%clk 0:01:56.5]} 23. f6+ {[%clk 0:01:22.2]}
23... Kh8 {[%clk 0:01:50.2]} 24. Qh5 {[%clk 0:00:48.8]} 24... Rg8 {[%clk
0:01:33.9]} 25. O-O-O {[%clk 0:00:35.8]} 25... Rad8 {[%clk 0:01:15]} 26. Rxd8
{[%clk 0:00:32.8]} 26... Qxd8 {[%clk 0:01:13.6]} 27. Qxf7 {[%clk 0:00:31.6]}
27... Qd6 {[%clk 0:00:22.2]} 28. h4 {[%clk 0:00:14.3]} 28... Qg3 {[%clk
0:00:18.3]} 29. Qh5 {[%clk 0:00:06]} 29... Qg6 {[%clk 0:00:11.2]} 30. Qe5 {[%clk
0:00:02.6]} 30... Qf7 {[%clk 0:00:06]} 31. Ng5 {[%clk 0:00:02.4]} 31... Rxg5
{[%clk 0:00:03.8]} 32. hxg5 {[%clk 0:00:03.3]} 32... h6 {[%clk 0:00:02.7]} 33.
Qb8+ {[%clk 0:00:02.9]} 33... Kh7 {[%clk 0:00:02.9]} 34. Qe5 {[%clk 0:00:02.7]}
34... Kg6 {[%clk 0:00:03.3]} 35. Qe4+ {[%clk 0:00:01.2]} 35... Kh5 {[%clk
0:00:02.2]} 36. Qf4 {[%clk 0:00:02.1]} 36... Kg6 {[%clk 0:00:01.8]} 37. Qf3
{[%clk 0:00:03]} 37... Kh7 {[%clk 0:00:01.7]} 38. e4 {[%clk 0:00:03.9]} 38...
Kg8 {[%clk 0:00:02.2]} 39. Qf5 {[%clk 0:00:04.7]} 39... Kh8 {[%clk 0:00:03.1]}
40. g6 {[%clk 0:00:05.3]} 40... Kg8 {[%clk 0:00:04]} 41. g7 {[%clk 0:00:05.9]}
41... Qf8 {[%clk 0:00:04.1]} 42. Qc8 {[%clk 0:00:06.7]} 42... Qxc8 {[%clk
0:00:03.7]} 43. f7+ {[%clk 0:00:07.6]} 43... Kxf7 {[%clk 0:00:03.6]} 44. e5
{[%clk 0:00:08.4]} 44... Qg8 {[%clk 0:00:03.5]} 45. e6+ {[%clk 0:00:08]} 45...
Kxe6 {[%clk 0:00:03.5]} 46. Kc2 {[%clk 0:00:08.9]} 46... Qxg7 {[%clk 0:00:04.1]}
47. b3 {[%clk 0:00:09.8]} 47... Qg3 {[%clk 0:00:04.2]} 48. c4 {[%clk 0:00:10.7]}
48... Ke5 {[%clk 0:00:04.6]} 49. a3 {[%clk 0:00:11.5]} 49... Kd4 {[%clk
0:00:05.1]} 50. b4 {[%clk 0:00:12.4]} 50... Qg2+ {[%clk 0:00:05.4]} 0-1

[Event "*** Titled Tuesday Blitz"]
[Site "Chess.com"]
[Date "2021.04.27"]
[Round "4"]
[White "MuhittinBuker"]
[Black "SirStrateg"]
[Result "1-0"]
[WhiteElo "2205"]
[BlackElo "2572"]
[TimeControl "180+1"]
[EndTime "10:39:48 PDT"]
[Termination "MuhittinBuker won by resignation"]

1. d4 {[%clk 0:03:00.9]} 1... Nf6 {[%clk 0:03:00]} 2. c4 {[%clk 0:03:00.8]} 2...
d6 {[%clk 0:03:00.7]} 3. Nc3 {[%clk 0:02:57.9]} 3... Nbd7 {[%clk 0:03:01.2]} 4.
e4 {[%clk 0:02:58]} 4... e5 {[%clk 0:03:00.7]} 5. Nf3 {[%clk 0:02:58]} 5... Be7
{[%clk 0:03:01.2]} 6. Be2 {[%clk 0:02:55.2]} 6... O-O {[%clk 0:03:01.4]} 7. Be3
{[%clk 0:02:54.2]} 7... c6 {[%clk 0:03:01.7]} 8. h3 {[%clk 0:02:53.9]} 8... a6
{[%clk 0:03:01.7]} 9. O-O {[%clk 0:02:53.6]} 9... b5 {[%clk 0:03:01.2]} 10. dxe5
{[%clk 0:02:52.8]} 10... dxe5 {[%clk 0:03:01.3]} 11. b3 {[%clk 0:02:51]} 11...
b4 {[%clk 0:03:00.6]} 12. Na4 {[%clk 0:02:50.4]} 12... Nxe4 {[%clk 0:02:58.6]}
13. Qc2 {[%clk 0:02:49.1]} 13... Nef6 {[%clk 0:02:56.4]} 14. Rfd1 {[%clk
0:02:48.7]} 14... Qc7 {[%clk 0:02:56.2]} 15. c5 {[%clk 0:02:41.6]} 15... a5
{[%clk 0:02:52.3]} 16. Bc4 {[%clk 0:02:38.7]} 16... Ba6 {[%clk 0:02:49.6]} 17.
Bxa6 {[%clk 0:02:30.9]} 17... Rxa6 {[%clk 0:02:49.7]} 18. Rd2 {[%clk 0:02:27.8]}
18... h6 {[%clk 0:02:46.7]} 19. Rad1 {[%clk 0:02:26.6]} 19... Re8 {[%clk
0:02:34]} 20. Qf5 {[%clk 0:02:25]} 20... Ra7 {[%clk 0:02:22.7]} 21. Rd6 {[%clk
0:01:51.7]} 21... Bxd6 {[%clk 0:02:09.8]} 22. cxd6 {[%clk 0:01:50.9]} 22... Qb8
{[%clk 0:02:07.7]} 23. Bxa7 {[%clk 0:01:46.6]} 23... Qxa7 {[%clk 0:02:08.6]} 24.
Qc2 {[%clk 0:01:33.1]} 24... e4 {[%clk 0:02:07.8]} 25. Nd4 {[%clk 0:01:30.8]}
25... c5 {[%clk 0:01:57.1]} 26. Nf5 {[%clk 0:01:21.9]} 26... Kf8 {[%clk
0:01:19.3]} 27. Qc4 {[%clk 0:01:03.7]} 27... Re5 {[%clk 0:01:11.9]} 28. Ne3
{[%clk 0:01:01]} 28... Qb7 {[%clk 0:01:04.6]} 29. Qc1 {[%clk 0:00:47.5]} 29...
Qa8 {[%clk 0:00:50.7]} 30. Nc4 {[%clk 0:00:44.6]} 30... Rd5 {[%clk 0:00:50.6]}
31. Ncb6 {[%clk 0:00:42.2]} 31... Nxb6 {[%clk 0:00:49]} 32. Nxb6 {[%clk
0:00:40.7]} 32... Rxd1+ {[%clk 0:00:49.2]} 33. Qxd1 {[%clk 0:00:40.5]} 33... Qd8
{[%clk 0:00:49.8]} 34. Nc4 {[%clk 0:00:36.2]} 34... Ne8 {[%clk 0:00:41.4]} 35.
Qd5 {[%clk 0:00:33.9]} 35... Qd7 {[%clk 0:00:36.2]} 36. Qxc5 {[%clk 0:00:33.1]}
36... f5 {[%clk 0:00:32.1]} 37. Qxa5 {[%clk 0:00:32.7]} 37... Nxd6 {[%clk
0:00:30.6]} 38. Qxb4 {[%clk 0:00:32.5]} 38... Ke7 {[%clk 0:00:30.1]} 39. Nxd6
{[%clk 0:00:32.4]} 39... Qxd6 {[%clk 0:00:30.6]} 40. Qxd6+ {[%clk 0:00:30.2]}
40... Kxd6 {[%clk 0:00:31.5]} 41. Kf1 {[%clk 0:00:29.1]} 41... Kc5 {[%clk
0:00:31.7]} 42. a4 {[%clk 0:00:26.9]} 42... f4 {[%clk 0:00:29]} 43. Ke2 {[%clk
0:00:25.9]} 43... g5 {[%clk 0:00:27.1]} 44. g3 {[%clk 0:00:25.4]} 44... h5
{[%clk 0:00:25.3]} 45. gxf4 {[%clk 0:00:19.4]} 45... gxf4 {[%clk 0:00:21.5]} 46.
Kd2 {[%clk 0:00:19.5]} 46... Kb4 {[%clk 0:00:21.2]} 47. Kc2 {[%clk 0:00:19.6]}
47... h4 {[%clk 0:00:20.6]} 48. Kd2 {[%clk 0:00:18.8]} 48... Ka5 {[%clk
0:00:20.9]} 49. Kc3 {[%clk 0:00:18.8]} 49... Kb6 {[%clk 0:00:19.5]} 50. Kd4
{[%clk 0:00:19]} 50... e3 {[%clk 0:00:19.7]} 51. fxe3 {[%clk 0:00:18.6]} 51...
f3 {[%clk 0:00:20.2]} 52. Kd3 {[%clk 0:00:18.9]} 52... f2 {[%clk 0:00:20.1]} 53.
Ke2 {[%clk 0:00:18.9]} 53... f1=Q+ {[%clk 0:00:20.5]} 54. Kxf1 {[%clk
0:00:19.1]} 1-0

[Event "*** Titled Tuesday Blitz"]
[Site "Chess.com"]
[Date "2021.04.27"]
[Round "4"]
[White "Kapibara_Warri0r"]
[Black "Marty435"]
[Result "0-1"]
[WhiteElo "2221"]
[BlackElo "2599"]
[TimeControl "180+1"]
[EndTime "10:39:50 PDT"]
[Termination "Marty435 won by resignation"]

1. e4 {[%clk 0:03:00.9]} 1... c6 {[%clk 0:03:00.2]} 2. d4 {[%clk 0:03:00.7]}
2... d5 {[%clk 0:03:00.7]} 3. Nc3 {[%clk 0:03:00]} 3... dxe4 {[%clk 0:03:00.8]}
4. Nxe4 {[%clk 0:03:00.9]} 4... Nf6 {[%clk 0:03:01.2]} 5. Nxf6+ {[%clk
0:03:00.2]} 5... exf6 {[%clk 0:03:02.1]} 6. c3 {[%clk 0:02:58.4]} 6... Bd6
{[%clk 0:03:02.5]} 7. Qf3 {[%clk 0:02:58.7]} 7... O-O {[%clk 0:03:01.6]} 8. Bd3
{[%clk 0:02:59.3]} 8... Re8+ {[%clk 0:03:01.6]} 9. Ne2 {[%clk 0:03:00]} 9... Nd7
{[%clk 0:03:00.1]} 10. O-O {[%clk 0:02:59.9]} 10... Nf8 {[%clk 0:03:00.5]} 11.
Bf4 {[%clk 0:02:56.6]} 11... Ng6 {[%clk 0:02:59]} 12. Bxd6 {[%clk 0:02:53.7]}
12... Qxd6 {[%clk 0:02:59.9]} 13. Ng3 {[%clk 0:02:48.2]} 13... Be6 {[%clk
0:02:45.5]} 14. Rfe1 {[%clk 0:02:44.4]} 14... Nf4 {[%clk 0:02:39]} 15. Nh5
{[%clk 0:02:24.5]} 15... Nxd3 {[%clk 0:02:19.5]} 16. Qxd3 {[%clk 0:02:25.4]}
16... b5 {[%clk 0:02:01.1]} 17. b3 {[%clk 0:02:24]} 17... a5 {[%clk 0:01:57]}
18. Rad1 {[%clk 0:02:21.9]} 18... a4 {[%clk 0:01:56.5]} 19. Qe4 {[%clk
0:01:37.6]} 19... axb3 {[%clk 0:01:50.6]} 20. axb3 {[%clk 0:01:38.5]} 20... Qd5
{[%clk 0:01:29.2]} 21. Qh4 {[%clk 0:00:55.9]} 21... Qg5 {[%clk 0:01:21]} 22.
Qxg5 {[%clk 0:00:52.5]} 22... fxg5 {[%clk 0:01:21.9]} 23. b4 {[%clk 0:00:49]}
23... Bg4 {[%clk 0:01:18.6]} 24. Ng3 {[%clk 0:00:37.5]} 24... Bxd1 {[%clk
0:01:18]} 25. Rxd1 {[%clk 0:00:38.4]} 25... Ra3 {[%clk 0:01:17.9]} 26. Rc1
{[%clk 0:00:38]} 26... g6 {[%clk 0:01:12.9]} 27. Kf1 {[%clk 0:00:37.8]} 27... f5
{[%clk 0:01:12.8]} 28. c4 {[%clk 0:00:37.5]} 28... bxc4 {[%clk 0:01:10.5]} 29.
Ne2 {[%clk 0:00:32.8]} 29... Ra2 {[%clk 0:01:03.4]} 30. Nc3 {[%clk 0:00:27.5]}
30... Rd2 {[%clk 0:01:02.3]} 31. b5 {[%clk 0:00:24.7]} 31... cxb5 {[%clk
0:00:59.6]} 32. Nxb5 {[%clk 0:00:25.1]} 32... Rb8 {[%clk 0:01:00.3]} 33. Nc7
{[%clk 0:00:17.4]} 33... c3 {[%clk 0:00:57.3]} 34. d5 {[%clk 0:00:14.8]} 34...
c2 {[%clk 0:00:52.1]} 35. Ke1 {[%clk 0:00:14.5]} 35... Rd1+ {[%clk 0:00:35.6]}
36. Rxd1 {[%clk 0:00:13.9]} 36... Rb1 {[%clk 0:00:36.5]} 37. Rc1 {[%clk
0:00:07.8]} 37... Rxc1+ {[%clk 0:00:36.7]} 38. Kd2 {[%clk 0:00:08.4]} 38... Rf1
{[%clk 0:00:37.4]} 39. Kxc2 {[%clk 0:00:08.8]} 39... Rxf2+ {[%clk 0:00:38]} 40.
Kd3 {[%clk 0:00:09.4]} 40... Kf8 {[%clk 0:00:37.8]} 41. Ne6+ {[%clk 0:00:08.5]}
41... Ke7 {[%clk 0:00:38.1]} 42. Nxg5 {[%clk 0:00:06]} 42... Rxg2 {[%clk
0:00:38.5]} 43. Nxh7 {[%clk 0:00:05.9]} 43... Rxh2 {[%clk 0:00:18.3]} 44. Ng5
{[%clk 0:00:06]} 44... Rh4 {[%clk 0:00:17.7]} 45. Ke3 {[%clk 0:00:05.3]} 45...
Rg4 {[%clk 0:00:16.6]} 46. Nf3 {[%clk 0:00:05.2]} 46... Kd6 {[%clk 0:00:16.7]}
47. Nh2 {[%clk 0:00:04.1]} 47... Re4+ {[%clk 0:00:16.5]} 48. Kf3 {[%clk
0:00:04.2]} 48... Kxd5 {[%clk 0:00:17.4]} 49. Nf1 {[%clk 0:00:04.5]} 49... Ke5
{[%clk 0:00:17.5]} 50. Ng3 {[%clk 0:00:04.6]} 50... Ra4 {[%clk 0:00:17.8]} 51.
Ne2 {[%clk 0:00:03.8]} 51... Ra3+ {[%clk 0:00:18.2]} 52. Kf2 {[%clk 0:00:04.2]}
52... g5 {[%clk 0:00:18.6]} 0-1